bitfinex-derivatives/quotes_BTCF0:USTF0_20241022
["timestamp","ask_amount","ask_price","bid_price","bid_amount"]
[1729626167339,0.14813278,67507.0,67506.0,0.28205095]
[1729626167539,0.22223178,67507.0,67506.0,0.28205095]
[1729626167731,0.33223178,67507.0,67506.0,0.28205095]
[1729626167925,0.14813278,67507.0,67506.0,0.28205095]
[1729626168337,0.14813278,67507.0,67506.0,0.37075727]
[1729626168535,0.14813278,67507.0,67506.0,0.28205095]
[1729626168735,0.14813278,67507.0,67506.0,0.37075727]
[1729626169534,0.14813278,67507.0,67506.0,0.28205095]
[1729626170430,0.14813278,67507.0,67506.0,0.39903319]
[1729626171127,0.33223178,67507.0,67506.0,0.39903319]
[1729626171333,0.33223178,67507.0,67506.0,0.28903319]
[1729626172234,0.33223178,67507.0,67506.0,0.0741]
[1729626172235,0.45389697,67507.0,67506.0,0.0741]
[1729626172543,0.40771658,67507.0,67506.0,0.0741]
[1729626174135,0.3671642,67507.0,67506.0,0.0741]
[1729626174336,0.40772238,67507.0,67506.0,0.0741]
[1729626174745,0.55585516,67507.0,67506.0,0.0741]
[1729626175338,0.51529698,67507.0,67506.0,0.0741]
[1729626178346,0.60216791,67507.0,67506.0,0.0741]
[1729626179052,0.55596726,67507.0,67506.0,0.0741]
[1729626179249,0.48036456,67507.0,67506.0,0.28937367]
[1729626180160,0.48036456,67507.0,67506.0,0.17231051]
[1729626183156,0.48036456,67507.0,67506.0,0.28944703]
[1729626184558,0.48036456,67507.0,67506.0,0.17231051]
[1729626184964,0.48036456,67507.0,67506.0,0.26105143]
[1729626185369,0.48036456,67507.0,67506.0,0.17231051]
[1729626185674,0.48036456,67507.0,67506.0,0.2610521]
[1729626186562,0.48036456,67507.0,67506.0,0.1869521]
[1729626187060,0.48036456,67507.0,67506.0,0.09821051]
[1729626187264,0.51475015,67507.0,67506.0,0.0741]
[1729626194370,0.48036456,67507.0,67506.0,0.17312788]
[1729626194760,0.48036456,67507.0,67506.0,0.29116384]
[1729626195073,0.48036456,67507.0,67506.0,0.17312788]
[1729626195466,0.40626556,67507.0,67506.0,0.17312788]
[1729626196569,0.40626556,67507.0,67506.0,0.17355906]
[1729626197365,0.48036456,67507.0,67506.0,0.29380533]
[1729626199867,0.37036456,67507.0,67506.0,0.29380533]
[1729626201272,0.37036456,67507.0,67506.0,0.29520307]
[1729626202470,0.40213942,67507.0,67506.0,0.0741]
[1729626206275,0.40216272,67507.0,67506.0,0.0741]
[1729626207190,0.32806372,67507.0,67506.0,0.1841]
[1729626207479,0.06378758,67507.0,67506.0,1.01247371]
[1729626207682,0.06378758,67507.0,67506.0,1.1668569]
[1729626207876,0.06378758,67507.0,67506.0,1.0568569]
[1729626208281,0.06378758,67507.0,67506.0,1.01247236]
[1729626208676,0.06378758,67507.0,67506.0,1.03573063]
[1729626209480,0.09622886,67507.0,67506.0,1.61957191]
[1729626209671,0.1024,67532.0,67523.0,0.074082]
[1729626209872,0.074076,67529.0,67523.0,0.65404892]
[1729626210180,0.02271531,67526.0,67523.0,0.65404892]
[1729626211281,0.11008,67528.0,67523.0,0.65404892]
[1729626212388,0.11008,67528.0,67523.0,0.53503349]
[1729626213182,0.20703311,67529.0,67523.0,0.62338186]
[1729626213381,0.31703311,67529.0,67523.0,0.62338186]
[1729626214179,0.31703311,67529.0,67523.0,0.53503349]
[1729626217478,0.219924,67524.0,67523.0,0.434882]
[1729626218090,0.18133332,67524.0,67523.0,0.434882]
[1729626220390,0.18134496,67524.0,67523.0,0.434882]
[1729626223786,0.32944045,67524.0,67523.0,0.434882]
[1729626224394,0.29619098,67524.0,67523.0,0.434882]
[1729626228800,0.29619098,67524.0,67523.0,0.544882]
[1729626228996,0.1,67541.0,67523.0,1.07472319]
[1729626229299,0.02282594,67539.0,67538.0,0.074063]
[1729626229502,0.1,67541.0,67540.0,0.074063]
[1729626229693,0.053,67549.0,67548.0,0.074054]
[1729626229894,0.07405,67552.0,67551.0,0.074051]
[1729626230092,0.184088,67554.0,67553.0,0.074049]
[1729626230800,0.02271231,67554.0,67553.0,0.074049]
[1729626231000,0.14795088,67590.0,67553.0,0.11]
[1729626231001,0.434818,67582.0,67553.0,0.11]
[1729626231206,0.074035,67566.0,67564.0,0.3608]
[1729626231410,0.0534,67567.0,67564.0,0.3608]
[1729626231595,0.0534,67567.0,67566.0,0.074035]
[1729626231907,0.02365203,67574.0,67572.0,0.074027]
[1729626232099,0.02365203,67574.0,67564.0,0.3608]
[1729626232291,0.074028,67572.0,67570.0,0.07403]
[1729626232496,0.074028,67572.0,67569.0,0.074031]
[1729626233005,0.11,67571.0,67569.0,0.074031]
[1729626233798,0.184029,67571.0,67569.0,0.074031]
[1729626234499,0.184029,67571.0,67570.0,0.07403]
[1729626236006,0.11,67571.0,67570.0,0.07403]
[1729626236805,0.11,67571.0,67570.0,0.43483]
[1729626239402,0.30784404,67571.0,67570.0,0.24225387]
[1729626239602,0.074032,67568.0,67567.0,0.074032]
[1729626239814,0.12381504,67568.0,67567.0,0.074032]
[1729626240107,0.12381504,67568.0,67566.0,0.11]
[1729626240108,0.074029,67571.0,67570.0,0.07403]
[1729626240402,0.19764988,67571.0,67570.0,0.03924611]
[1729626240795,0.23362088,67571.0,67570.0,0.03924611]
[1729626241999,0.30764988,67571.0,67569.0,0.11]
[1729626242199,0.17911721,67570.0,67569.0,0.11]
[1729626242408,0.17177395,67570.0,67569.0,0.11]
[1729626242609,0.11627762,67570.0,67569.0,0.11]
[1729626242904,0.11627762,67570.0,67569.0,0.074031]
[1729626243104,0.19030762,67570.0,67569.0,0.074031]
[1729626243307,0.11627762,67570.0,67569.0,0.074031]
[1729626244104,0.33830229,67570.0,67569.0,0.074031]
[1729626244407,0.39379862,67570.0,67569.0,0.074031]
[1729626246509,0.39379862,67570.0,67564.0,0.10443616]
[1729626246704,0.17177395,67569.0,67568.0,0.074032]
[1729626247011,0.17017491,67569.0,67568.0,0.074032]
[1729626247717,0.22202467,67570.0,67568.0,0.074032]
[1729626247909,0.11,67569.0,67568.0,0.074032]
[1729626249317,0.074032,67568.0,67558.0,0.074042]
[1729626249504,0.07405,67552.0,67550.0,0.07627144]
[1729626249706,0.11,67551.0,67550.0,0.07627144]
[1729626249907,0.1098,67560.0,67550.0,0.11222044]
[1729626250207,0.1098,67566.0,67560.0,0.074041]
[1729626250412,0.1098,67566.0,67565.0,0.11]
[1729626251114,0.1098,67566.0,67564.0,0.074036]
[1729626251820,0.184034,67567.0,67565.0,0.11]
[1729626252021,0.1098,67569.0,67566.0,0.074035]
[1729626252217,0.1098,67569.0,67567.0,0.074032]
[1729626252521,0.1098,67569.0,67568.0,0.074032]
[1729626254421,0.35473613,67570.0,67568.0,0.074032]
[1729626254629,0.46453613,67570.0,67568.0,0.074032]
[1729626256318,0.46453613,67570.0,67565.0,0.11]
[1729626256518,0.46453613,67570.0,67569.0,0.074031]
[1729626257217,0.074031,67569.0,67568.0,0.184032]
[1729626261021,0.074031,67569.0,67568.0,0.074032]
[1729626262322,0.17070613,67570.0,67569.0,0.074031]
[1729626262523,0.14799467,67570.0,67569.0,0.123231]
[1729626262725,0.14799467,67570.0,67569.0,0.176031]
[1729626263022,0.14799467,67570.0,67569.0,0.66423132]
[1729626263224,0.14799467,67570.0,67569.0,0.620031]
[1729626266722,0.14799467,67570.0,67569.0,0.62466092]
[1729626269733,0.05169173,67570.0,67569.0,0.84134315]
[1729626270327,0.05169173,67570.0,67569.0,0.83671323]
[1729626270526,0.05169173,67570.0,67569.0,0.39734328]
[1729626270937,0.05169173,67570.0,67569.0,0.84134328]
[1729626271128,0.05169173,67570.0,67569.0,0.39734328]
[1729626271627,0.05169173,67570.0,67569.0,0.39734306]
[1729626272932,0.05169173,67570.0,67569.0,0.50734306]
[1729626273127,0.074015,67584.0,67583.0,0.074014]
[1729626273430,0.074015,67584.0,67583.0,0.28286711]
[1729626274332,0.11,67584.0,67583.0,0.20885311]
[1729626274533,0.11,67584.0,67583.0,0.17230158]
[1729626274733,0.11,67584.0,67582.0,0.07344847]
[1729626274938,0.11,67584.0,67583.0,0.074016]
[1729626275128,0.11,67584.0,67583.0,0.14746447]
[1729626275333,0.11,67584.0,67583.0,0.074016]
[1729626280735,0.25796401,67584.0,67583.0,0.074016]
[1729626283638,0.29239395,67584.0,67583.0,0.074016]
[1729626284047,0.25796401,67584.0,67583.0,0.074016]
[1729626284247,0.29239396,67584.0,67583.0,0.074016]
[1729626284449,0.25796401,67584.0,67583.0,0.074016]
[1729626287351,0.25796401,67584.0,67583.0,0.14746447]
[1729626288237,0.25796401,67584.0,67583.0,0.24537874]
[1729626288456,0.25796401,67584.0,67583.0,0.17193027]
[1729626289256,0.25796401,67584.0,67583.0,0.17194548]
[1729626291652,0.33269458,67584.0,67583.0,0.074016]
[1729626292452,0.37843581,67584.0,67583.0,0.074016]
[1729626294056,0.33272612,67584.0,67583.0,0.074016]
[1729626294246,0.37858556,67584.0,67583.0,0.074016]
[1729626295455,0.29255933,67584.0,67583.0,0.074016]
[1729626296847,0.18255933,67584.0,67583.0,0.184016]
[1729626298751,0.18276028,67584.0,67583.0,0.184016]
[1729626299658,0.14796401,67584.0,67583.0,0.84244958]
[1729626299953,0.10352629,67584.0,67583.0,0.97843685]
[1729626300151,0.14795088,67590.0,67589.0,0.074009]
[1729626300347,0.14795088,67590.0,67589.0,0.87399115]
[1729626300551,0.0961126,67590.0,67589.0,1.45257414]
[1729626300746,0.0961126,67590.0,67589.0,1.57101828]
[1729626300954,0.0220629,67590.0,67589.0,1.60496773]
[1729626301156,0.0220629,67590.0,67589.0,1.60496721]
[1729626301358,0.0220629,67590.0,67589.0,1.60010258]
[1729626301656,0.0220629,67590.0,67589.0,1.34257368]
[1729626301852,0.0220629,67590.0,67589.0,1.33794557]
[1729626302256,0.0220629,67590.0,67589.0,1.45553641]
[1729626302460,0.0220629,67590.0,67589.0,1.33794557]
[1729626302664,0.0220629,67590.0,67589.0,1.36625638]
[1729626303065,0.0220629,67590.0,67589.0,1.36162812]
[1729626303262,0.0220629,67590.0,67589.0,1.47162812]
[1729626303449,0.073991,67607.0,67601.0,0.073996]
[1729626303758,0.073991,67607.0,67606.0,0.61821806]
[1729626303946,0.073991,67607.0,67606.0,0.71607125]
[1729626304350,0.09687209,67607.0,67606.0,0.544791]
[1729626305747,0.02288109,67607.0,67606.0,0.544791]
[1729626305951,0.183987,67610.0,67607.0,0.07399]
[1729626306152,0.11,67610.0,67607.0,0.07399]
[1729626308355,0.07347035,67608.0,67607.0,0.07399]
[1729626312056,0.02297035,67608.0,67607.0,0.07399]
[1729626312256,0.073983,67613.0,67612.0,0.073984]
[1729626312659,0.45863234,67615.0,67606.0,0.4708]
[1729626312867,0.45779234,67615.0,67614.0,0.073982]
[1729626313661,0.53177334,67615.0,67614.0,0.073982]
[1729626315362,0.29579234,67615.0,67614.0,0.183982]
[1729626316667,0.29579234,67615.0,67614.0,0.293982]
[1729626316862,0.29579234,67615.0,67614.0,0.737662]
[1729626317959,0.29579234,67615.0,67614.0,0.76130622]
[1729626318364,0.14786556,67629.0,67628.0,0.073967]
[1729626318564,0.14786556,67629.0,67628.0,0.544767]
[1729626318967,0.22183156,67629.0,67628.0,0.544767]
[1729626319467,0.14786556,67629.0,67628.0,0.544767]
[1729626327376,0.14786556,67629.0,67628.0,0.183967]
[1729626331673,0.073968,67627.0,67626.0,0.04390519]
[1729626331873,0.0524,67628.0,67627.0,0.073968]
[1729626332083,0.14786556,67629.0,67628.0,0.073967]
[1729626332279,0.14786556,67629.0,67628.0,0.434767]
[1729626332780,0.14786556,67629.0,67628.0,1.207887]
[1729626332979,0.14786556,67629.0,67628.0,1.097887]
[1729626333177,0.14786556,67629.0,67628.0,1.207887]
[1729626333882,0.14786556,67629.0,67628.0,1.23050669]
[1729626336778,0.10346115,67629.0,67628.0,1.32422074]
[1729626337177,0.10346115,67629.0,67628.0,1.39730869]
[1729626337380,0.10346115,67629.0,67628.0,1.39731386]
[1729626337791,0.05165495,67629.0,67628.0,1.32422074]
[1729626339485,0.0526,67648.0,67643.0,0.07395]
[1729626339685,0.0526,67648.0,67647.0,0.544746]
[1729626339883,0.14976424,67648.0,67647.0,0.544746]
[1729626340689,0.073939,67656.0,67655.0,0.073936]
[1729626341001,0.073939,67656.0,67655.0,0.183936]
[1729626341295,0.073939,67656.0,67655.0,0.073936]
[1729626341484,0.125939,67656.0,67655.0,0.073936]
[1729626342591,0.162,67656.0,67655.0,0.073936]
[1729626344796,0.07387055,67656.0,67655.0,0.3608]
[1729626345093,0.18387055,67656.0,67655.0,0.434737]
[1729626348197,0.07387055,67656.0,67655.0,0.434737]
[1729626348393,0.18387055,67656.0,67655.0,0.434737]
[1729626350395,0.07387055,67656.0,67655.0,0.434737]
[1729626351794,0.21044495,67656.0,67655.0,0.31634393]
[1729626355503,0.20719221,67656.0,67655.0,0.31634393]
[1729626357003,0.35462535,67656.0,67655.0,0.31634393]
[1729626357204,0.20719221,67656.0,67655.0,0.31634393]
[1729626360006,0.07387055,67656.0,67655.0,0.31634393]
[1729626361703,0.07387055,67656.0,67655.0,0.073937]
[1729626366904,0.20690351,67656.0,67655.0,0.183937]
[1729626372637,0.20654387,67656.0,67655.0,0.183937]
[1729626372928,0.15618513,67656.0,67655.0,0.183937]
[1729626374825,0.15618513,67656.0,67655.0,0.39209781]
[1729626374826,0.02947936,67656.0,67655.0,0.39209781]
[1729626375022,0.14780436,67657.0,67656.0,0.073936]
[1729626375230,0.1048,67671.0,67670.0,0.073921]
[1729626375529,0.0536,67671.0,67670.0,0.64000369]
[1729626376030,0.0226087,67672.0,67671.0,0.07392]
[1729626376227,0.0538,67678.0,67677.0,0.073913]
[1729626376431,0.0538,67678.0,67677.0,0.16919569]
[1729626376630,0.0538,67678.0,67677.0,0.24126104]
[1729626377231,0.0538,67678.0,67677.0,0.1471772]
[1729626377429,0.0538,67678.0,67671.0,0.16187103]
[1729626377624,0.3608,67680.0,67679.0,0.073911]
[1729626377835,0.38339945,67680.0,67679.0,0.16784222]
[1729626378438,0.073905,67685.0,67679.0,0.45473122]
[1729626378734,0.073905,67685.0,67684.0,0.11]
[1729626379031,0.183905,67685.0,67684.0,0.11]
[1729626379334,0.129002,67687.0,67686.0,0.073903]
[1729626379529,0.239002,67687.0,67686.0,0.13244892]
[1729626379738,0.239002,67687.0,67686.0,0.183903]
[1729626380225,0.26229739,67687.0,67686.0,0.183903]
[1729626380432,0.26229739,67687.0,67686.0,0.24241751]
[1729626380633,0.26229739,67687.0,67686.0,0.073903]
[1729626380937,0.073904,67685.0,67684.0,0.05851451]
[1729626381137,0.073905,67684.0,67683.0,0.05851451]
[1729626381434,0.11,67684.0,67681.0,0.073909]
[1729626381730,0.073905,67684.0,67683.0,0.05848376]
[1729626381932,0.073908,67682.0,67681.0,0.073909]
[1729626382135,0.183908,67682.0,67681.0,0.073909]
[1729626382331,0.26950242,67682.0,67681.0,0.073909]
[1729626382531,0.19559442,67682.0,67679.0,0.3608]
[1729626382735,0.07839539,67687.0,67679.0,0.3608]
[1729626382736,0.11,67680.0,67679.0,0.3608]
[1729626382933,0.14960785,67680.0,67679.0,0.3608]
[1729626384036,0.14960785,67680.0,67677.0,0.11]
[1729626384246,0.03960785,67679.0,67678.0,0.073912]
[1729626384836,0.13733188,67679.0,67678.0,0.073912]
[1729626385142,0.13742405,67679.0,67678.0,0.073912]
[1729626385940,0.13633247,67679.0,67678.0,0.073912]
[1729626386326,0.24633247,67679.0,67678.0,0.073912]
[1729626386530,0.24655773,67679.0,67678.0,0.073912]
[1729626386734,0.20161167,67679.0,67678.0,0.073912]
[1729626386945,0.24661325,67679.0,67678.0,0.073912]
[1729626387635,0.20161167,67679.0,67678.0,0.073912]
[1729626387936,0.24655847,67679.0,67678.0,0.073912]
[1729626388130,0.24660385,67679.0,67678.0,0.073912]
[1729626388336,0.24654544,67679.0,67678.0,0.073912]
[1729626388635,0.32045644,67679.0,67678.0,0.073912]
[1729626389946,0.236811,67679.0,67678.0,0.073912]
[1729626390331,0.25972495,67679.0,67678.0,0.073912]
[1729626390537,0.18581395,67679.0,67678.0,0.073912]
[1729626392147,0.18581395,67679.0,67668.0,0.05848376]
[1729626392148,0.073922,67669.0,67668.0,0.05848376]
[1729626392453,0.073926,67666.0,67663.0,0.073928]
[1729626392742,0.11,67664.0,67663.0,0.073928]
[1729626392947,0.0552,67665.0,67664.0,0.073927]
[1729626394443,0.129126,67665.0,67664.0,0.073927]
[1729626394942,0.152667,67665.0,67664.0,0.073927]
[1729626396937,0.152667,67665.0,67664.0,0.1688107]
[1729626397239,0.10827611,67665.0,67664.0,0.25676173]
[1729626397550,0.10827611,67665.0,67664.0,0.1688107]
[1729626397751,0.10827611,67665.0,67664.0,0.25663061]
[1729626397951,0.10827611,67665.0,67664.0,0.25663096]
[1729626398152,0.10827611,67665.0,67664.0,0.1688107]
[1729626398356,0.05648867,67665.0,67664.0,0.1688107]
[1729626400650,0.05648867,67665.0,67664.0,0.16800039]
[1729626400848,0.05648867,67665.0,67664.0,0.25584759]
[1729626401044,0.05648867,67665.0,67664.0,0.16800039]
[1729626401450,0.05648867,67665.0,67664.0,0.25584553]
[1729626401654,0.05648867,67665.0,67664.0,0.16800039]
[1729626403352,0.05648867,67665.0,67664.0,0.25586749]
[1729626403652,0.05648867,67665.0,67664.0,0.16800039]
[1729626404955,0.05648867,67665.0,67664.0,0.073927]
[1729626406853,0.16648867,67665.0,67664.0,0.073927]
[1729626409246,0.05648867,67665.0,67664.0,0.073927]
[1729626409454,0.16648867,67665.0,67664.0,0.073927]
[1729626409658,0.14294767,67665.0,67664.0,0.073927]
[1729626409856,0.11,67667.0,67664.0,0.073927]
[1729626410054,0.09737028,67668.0,67666.0,0.4708]
[1729626410255,0.11,67667.0,67666.0,0.544725]
[1729626410763,0.11,67667.0,67666.0,0.073925]
[1729626410963,0.183924,67667.0,67666.0,0.073925]
[1729626411958,0.183924,67667.0,67666.0,0.16890878]
[1729626416662,0.11,67667.0,67666.0,0.16890878]
[1729626418268,0.183924,67667.0,67666.0,0.16890878]
[1729626419569,0.183924,67667.0,67666.0,0.25692758]
[1729626419755,0.183924,67667.0,67666.0,0.16890878]
[1729626419955,0.183924,67667.0,67666.0,0.073925]
[1729626421767,0.22088604,67667.0,67666.0,0.073925]
[1729626422871,0.22084387,67667.0,67666.0,0.073925]
[1729626423260,0.27764387,67667.0,67666.0,0.073925]
[1729626424564,0.24659063,67667.0,67658.0,0.11]
[1729626424869,0.11,67659.0,67658.0,0.073934]
[1729626425470,0.3608,67666.0,67660.0,0.073932]
[1729626425471,0.11,67661.0,67660.0,0.073932]
[1729626425665,0.11,67664.0,67660.0,0.183932]
[1729626425871,0.11,67664.0,67663.0,0.073928]
[1729626426974,0.02344628,67668.0,67667.0,0.073924]
[1729626427288,0.11,67668.0,67667.0,0.28535067]
[1729626428662,0.183923,67668.0,67667.0,0.28535067]
[1729626429264,0.073928,67663.0,67662.0,0.08812833]
[1729626429465,0.073928,67663.0,67662.0,0.09670738]
[1729626433266,0.073928,67663.0,67662.0,0.17063638]
[1729626433463,0.073928,67663.0,67662.0,0.25878143]
[1729626433873,0.073928,67663.0,67662.0,0.17063638]
[1729626434371,0.22,67664.0,67663.0,0.073928]
[1729626434372,0.11,67664.0,67663.0,0.073928]
[1729626434763,0.183927,67664.0,67663.0,0.073928]
[1729626435567,0.20686411,67664.0,67663.0,0.073928]
[1729626436268,0.20686411,67664.0,67663.0,0.16207305]
[1729626436471,0.31618411,67664.0,67663.0,0.16207305]
[1729626437778,0.31618411,67664.0,67663.0,0.073928]
[1729626437979,0.31618411,67664.0,67663.0,0.16207305]
[1729626438372,0.31618411,67664.0,67663.0,0.073928]
[1729626440782,0.31618411,67664.0,67663.0,0.16207305]
[1729626441481,0.31618411,67664.0,67663.0,0.073928]
[1729626442182,0.3522294,67664.0,67663.0,0.073928]
[1729626442574,0.35221089,67664.0,67663.0,0.073928]
[1729626442770,0.31618411,67664.0,67663.0,0.073928]
[1729626442979,0.3521743,67664.0,67663.0,0.073928]
[1729626443772,0.31618411,67664.0,67663.0,0.073928]
[1729626443987,0.35219766,67664.0,67663.0,0.073928]
[1729626444585,0.31618411,67664.0,67663.0,0.073928]
[1729626445283,0.24225711,67664.0,67663.0,0.073928]
[1729626445474,0.17072618,67664.0,67663.0,0.073928]
[1729626445788,0.28072618,67664.0,67663.0,0.073928]
[1729626446486,0.14778907,67664.0,67663.0,0.073928]
[1729626446687,0.0074702,67664.0,67663.0,0.517288]
[1729626447381,0.0074702,67664.0,67663.0,0.627288]
[1729626448179,0.0074702,67664.0,67663.0,0.073928]
[1729626450085,0.0074702,67664.0,67663.0,0.2860106]
[1729626451183,0.0074702,67664.0,67663.0,0.3089512]
[1729626452581,0.183927,67665.0,67664.0,0.073927]
[1729626452782,0.183927,67665.0,67664.0,0.2860096]
[1729626453488,0.293927,67665.0,67664.0,0.2860096]
[1729626453790,0.403167,67665.0,67664.0,0.0967547]
[1729626454790,0.42583453,67665.0,67664.0,0.17006737]
[1729626454987,0.42583453,67665.0,67664.0,0.0967547]
[1729626455291,0.42583453,67665.0,67664.0,0.07331213]
[1729626455484,0.073927,67664.0,67663.0,0.07331213]
[1729626455687,0.299927,67664.0,67663.0,0.07331213]
[1729626456189,0.226,67664.0,67663.0,0.07331283]
[1729626456489,0.299927,67664.0,67663.0,0.17055776]
[1729626457307,0.073931,67661.0,67660.0,0.073932]
[1729626457592,0.183931,67661.0,67660.0,0.073932]
[1729626459685,0.11,67661.0,67651.0,0.239341]
[1729626459885,0.11,67657.0,67656.0,0.07615276]
[1729626463690,0.13317221,67657.0,67656.0,0.07615276]
[1729626463892,0.20710721,67657.0,67656.0,0.07615276]
[1729626465092,0.20710721,67657.0,67656.0,0.29050237]
[1729626466494,0.11,67657.0,67656.0,0.29050237]
[1729626470300,0.02275409,67658.0,67657.0,0.073935]
[1729626470496,0.11,67658.0,67657.0,0.28828461]
[1729626472194,0.11,67658.0,67657.0,0.073935]
[1729626474391,0.183934,67658.0,67657.0,0.073935]
[1729626474695,0.183934,67658.0,67645.0,0.02260736]
[1729626474696,0.073948,67646.0,67645.0,0.073946]
[1729626474902,0.183948,67646.0,67645.0,0.073946]
[1729626475200,0.183947,67646.0,67645.0,0.073946]
[1729626478097,0.20653341,67646.0,67645.0,0.073946]
[1729626479200,0.1621292,67646.0,67645.0,0.29046489]
[1729626480288,0.20653341,67646.0,67645.0,0.29046489]
[1729626480599,0.20653341,67646.0,67645.0,0.1867552]
[1729626480793,0.31653341,67646.0,67645.0,0.09877859]
[1729626481502,0.31653341,67646.0,67645.0,0.07330174]
[1729626481503,0.20653341,67646.0,67645.0,0.07330174]
[1729626481703,0.20581341,67646.0,67645.0,0.09919604]
[1729626481903,0.31581341,67646.0,67645.0,0.09919604]
[1729626482198,0.42581341,67646.0,67645.0,0.09919604]
[1729626482404,0.31581341,67646.0,67645.0,0.09919604]
[1729626482702,0.31581341,67646.0,67645.0,0.17247955]
[1729626482895,0.42581341,67646.0,67645.0,0.17247955]
[1729626483102,0.42581341,67646.0,67645.0,0.09919604]
[1729626483303,0.42581341,67646.0,67645.0,0.07327421]
[1729626483500,0.42581341,67646.0,67640.0,0.08797661]
[1729626483805,0.073962,67632.0,67631.0,0.07617963]
[1729626484099,0.293162,67632.0,67631.0,0.07617963]
[1729626484696,0.293162,67632.0,67631.0,0.00221763]
[1729626484899,0.293162,67632.0,67631.0,0.07618063]
[1729626485400,0.293162,67632.0,67631.0,0.07818063]
[1729626487203,0.293162,67632.0,67631.0,0.08018063]
[1729626488008,0.2192,67632.0,67631.0,0.08018063]
[1729626488699,0.24276352,67632.0,67631.0,0.08018063]
[1729626491500,0.0581,67640.0,67635.0,0.073959]
[1729626491705,0.10924,67633.0,67632.0,0.073962]
[1729626491901,0.21924,67633.0,67632.0,0.073962]
[1729626492508,0.16742668,67633.0,67632.0,0.073962]
[1729626492809,0.11,67633.0,67632.0,0.073962]
[1729626493312,0.02370889,67640.0,67639.0,0.073955]
[1729626493498,0.3608,67649.0,67648.0,0.073945]
[1729626493698,0.073946,67647.0,67646.0,0.05843888]
[1729626493908,0.183946,67647.0,67646.0,0.05843888]
[1729626494213,0.073947,67646.0,67645.0,0.073947]
[1729626498908,0.11,67647.0,67638.0,0.0584479]
[1729626499104,0.10924,67648.0,67641.0,0.073951]
[1729626499105,0.073952,67642.0,67641.0,0.073951]
[1729626500511,0.183952,67642.0,67641.0,0.073951]
[1729626500910,0.073957,67637.0,67636.0,0.073957]
[1729626501113,0.183957,67637.0,67636.0,0.073957]
[1729626502214,0.183957,67637.0,67636.0,0.17178161]
[1729626502413,0.11,67637.0,67636.0,0.17178161]
[1729626502807,0.11,67637.0,67636.0,0.28832962]
[1729626505017,0.11,67637.0,67636.0,0.28767083]
[1729626505523,0.183957,67637.0,67636.0,0.2876659]
[1729626505714,0.183957,67637.0,67636.0,0.28782394]
[1729626506115,0.183957,67637.0,67636.0,0.28780628]
[1729626507713,0.293957,67637.0,67636.0,0.09756068]
[1729626508416,0.403157,67637.0,67636.0,0.09756068]
[1729626510226,0.073961,67633.0,67632.0,0.073962]
[1729626510425,0.183961,67633.0,67632.0,0.073962]
[1729626515331,0.11,67633.0,67631.0,0.00221763]
[1729626515534,0.073962,67632.0,67631.0,0.00221763]
[1729626516533,0.073962,67632.0,67631.0,0.06094979]
[1729626517334,0.13313409,67633.0,67631.0,0.21838105]
[1729626517519,0.13313409,67633.0,67632.0,0.21616342]
[1729626519628,0.13313409,67633.0,67632.0,0.28938676]
[1729626520331,0.49393409,67633.0,67632.0,0.28938676]
[1729626521033,0.49393409,67633.0,67632.0,0.17224144]
[1729626521226,0.13313409,67633.0,67632.0,0.17224144]
[1729626521539,0.49393409,67633.0,67632.0,0.17224144]
[1729626521745,0.13313409,67633.0,67632.0,0.17224144]
[1729626522036,0.49393409,67633.0,67632.0,0.17224144]
[1729626522224,0.49393409,67633.0,67632.0,0.29020138]
[1729626523429,0.49393409,67633.0,67632.0,0.17224144]
[1729626524433,0.49393409,67633.0,67632.0,0.073962]
[1729626526329,0.49393409,67633.0,67632.0,0.14735628]
[1729626527436,0.13313409,67633.0,67632.0,0.24630654]
[1729626527739,0.3608,67633.0,67632.0,0.25735628]
[1729626527940,0.3608,67640.0,67639.0,0.073955]
[1729626528134,0.3608,67640.0,67639.0,0.25734631]
[1729626528334,0.3608,67640.0,67639.0,0.28254231]
[1729626528638,0.49422189,67640.0,67639.0,0.17254231]
[1729626529141,0.49422189,67640.0,67639.0,0.17244899]
[1729626532438,0.49422189,67640.0,67639.0,0.28979821]
[1729626532637,0.1092,67646.0,67645.0,0.073948]
[1729626532838,0.2192,67646.0,67645.0,0.28979121]
[1729626533835,0.2192,67646.0,67645.0,0.29069731]
[1729626534538,0.11,67646.0,67645.0,0.29069731]
[1729626535434,0.05819107,67646.0,67645.0,0.09888371]
[1729626535635,0.11,67646.0,67645.0,0.18692435]
[1729626535844,0.11,67646.0,67645.0,0.09888371]
[1729626537642,0.13342624,67646.0,67645.0,0.09888371]
[1729626538547,0.24258624,67646.0,67645.0,0.09888371]
[1729626541738,0.24258624,67646.0,67642.0,0.16199164]
[1729626541937,0.13258624,67646.0,67643.0,0.0986585]
[1729626542142,0.13258624,67646.0,67642.0,0.16199164]
[1729626542143,0.13258624,67646.0,67644.0,0.0986585]
[1729626542449,0.13258624,67646.0,67645.0,0.0986585]
[1729626542644,0.49338624,67646.0,67645.0,0.0986585]
[1729626543043,0.60338624,67646.0,67645.0,0.0986585]
[1729626543351,1.15686624,67646.0,67645.0,0.07331265]
[1729626543640,0.073948,67645.0,67636.0,0.08804064]
[1729626543840,0.4708,67637.0,67635.0,0.073959]
[1729626544046,0.17136,67636.0,67635.0,0.073959]
[1729626544842,0.17136,67636.0,67635.0,0.19120962]
[1729626546449,0.17136,67636.0,67635.0,0.19120185]
[1729626546949,0.17136,67636.0,67635.0,0.073959]
[1729626547144,0.17136,67636.0,67635.0,0.19121888]
[1729626547445,0.17136,67636.0,67635.0,0.073959]
[1729626548248,0.31921025,67636.0,67635.0,0.073959]
[1729626549640,0.14785025,67636.0,67635.0,0.11795188]
[1729626549851,0.14785025,67636.0,67635.0,0.073959]
[1729626550549,0.14785025,67636.0,67635.0,0.13261618]
[1729626550743,0.14785025,67636.0,67635.0,0.073959]
[1729626551440,0.14785025,67636.0,67635.0,0.11795488]
[1729626551644,0.14785025,67636.0,67635.0,0.073959]
[1729626551850,0.14785025,67636.0,67635.0,0.11795632]
[1729626552045,0.14785025,67636.0,67635.0,0.073959]
[1729626554551,0.05162728,67636.0,67635.0,0.43144266]
[1729626554956,0.05162728,67636.0,67635.0,0.43143025]
[1729626555343,0.05162728,67636.0,67635.0,0.43145354]
[1729626555550,0.05162728,67636.0,67635.0,0.19188936]